[Event "Titled Tuesday Blitz April 4 Late 2023"]
[White "Mirimanian, Hayk"]
[Black "Weisz, Bryan"]
[WhiteFideId "4700180"]
[BlackFideId "30934133"]
[WhiteElo "2280"]
[BlackElo "2353"]
[Result "0-1"]
[Round "06"]
[TimeControl "180+2"]
[Date "2023.04.04"]
[WhiteClock "0:00:02"]
[BlackClock "0:00:07"]

1. e4 {[%clk 0:02:59]}  c5 {[%clk 0:03:00]} 2. Nf3 {[%clk 0:02:59]}  Nc6 {[%clk 0:03:00]} 3. Bb5 {[%clk 0:02:59]}  g6 {[%clk 0:02:58]} 4. Bxc6 {[%clk 0:02:59]}  dxc6 {[%clk 0:02:58]} 5. h3 {[%clk 0:02:58]}  Bg7 {[%clk 0:02:59]} 6. d3 {[%clk 0:02:59]}  e5 {[%clk 0:02:59]} 7. Be3 {[%clk 0:02:59]}  b6 {[%clk 0:02:56]} 8. Qd2 {[%clk 0:02:59]}  Ne7 {[%clk 0:02:56]} 9. Nc3 {[%clk 0:02:53]}  O-O {[%clk 0:02:54]} 10. O-O-O {[%clk 0:02:52]}  f6 {[%clk 0:02:43]} 11. g4 {[%clk 0:02:31]}  Be6 {[%clk 0:02:43]} 12. Bh6 {[%clk 0:02:20]}  Qd7 {[%clk 0:02:32]} 13. Bxg7 {[%clk 0:02:12]}  Kxg7 {[%clk 0:02:32]} 14. g5 {[%clk 0:02:13]}  fxg5 {[%clk 0:02:15]} 15. Nxe5 {[%clk 0:02:12]}  Qd4 {[%clk 0:02:12]} 16. Qxg5 {[%clk 0:02:05]}  Rf6 {[%clk 0:01:58]} 17. Rdf1 {[%clk 0:01:51]}  Raf8 {[%clk 0:01:37]} 18. Rh2 {[%clk 0:00:40]}  Ng8 {[%clk 0:01:22]} 19. Qg3 {[%clk 0:00:38]}  b5 {[%clk 0:01:01]} 20. Kb1 {[%clk 0:00:37]}  b4 {[%clk 0:01:00]} 21. Ne2 {[%clk 0:00:36]}  Qd6 {[%clk 0:01:00]} 22. f4 {[%clk 0:00:34]}  c4 {[%clk 0:00:53]} 23. Nxc4 {[%clk 0:00:27]}  Bxc4 {[%clk 0:00:52]} 24. e5 {[%clk 0:00:27]}  Bxa2+ {[%clk 0:00:47]} 25. Kc1 {[%clk 0:00:24]}  Qd5 {[%clk 0:00:38]} 26. exf6+ {[%clk 0:00:24]}  Nxf6 {[%clk 0:00:38]} 27. Qe3 {[%clk 0:00:12]}  Qa5 {[%clk 0:00:37]} 28. Qd4 {[%clk 0:00:04]}  Bd5 {[%clk 0:00:34]} 29. b3 {[%clk 0:00:04]}  Rd8 {[%clk 0:00:33]} 30. Qb2 {[%clk 0:00:03]}  Qc5 {[%clk 0:00:28]} 31. f5 {[%clk 0:00:04]}  Qe3+ {[%clk 0:00:28]} 32. Kb1 {[%clk 0:00:04]}  g5 {[%clk 0:00:25]} 33. Nd4 {[%clk 0:00:05]}  c5 {[%clk 0:00:19]} 34. Ne6+ {[%clk 0:00:05]}  Bxe6 {[%clk 0:00:20]} 35. fxe6 {[%clk 0:00:06]}  Qxe6 {[%clk 0:00:20]} 36. Rhf2 {[%clk 0:00:07]}  Rf8 {[%clk 0:00:13]} 37. Rf5 {[%clk 0:00:07]}  Kg6 {[%clk 0:00:11]} 38. Rxc5 {[%clk 0:00:06]}  Qxh3 {[%clk 0:00:11]} 39. Rcf5 {[%clk 0:00:05]}  Qxf5 {[%clk 0:00:10]} 40. Rxf5 {[%clk 0:00:05]}  Kxf5 {[%clk 0:00:11]} 41. Qd4 {[%clk 0:00:05]}  Re8 {[%clk 0:00:09]} 42. Qxb4 {[%clk 0:00:05]}  g4 {[%clk 0:00:09]} 43. Qb5+ {[%clk 0:00:05]}  Kg6 {[%clk 0:00:09]} 44. Qb7 {[%clk 0:00:03]}  g3 {[%clk 0:00:09]} 45. d4 {[%clk 0:00:04]}  Re1+ {[%clk 0:00:08]} 46. Kb2 {[%clk 0:00:04]}  Re4 {[%clk 0:00:08]} 47. d5 {[%clk 0:00:04]}  g2 {[%clk 0:00:09]} 48. Qxa7 {[%clk 0:00:04]}  Re1 {[%clk 0:00:07]} 49. Qf2 {[%clk 0:00:01]}  g1=Q {[%clk 0:00:07]} 50. Qxg1+ {[%clk 0:00:01]}  Rxg1 {[%clk 0:00:07]} 51. d6 {[%clk 0:00:02]}  Rd1 {[%clk 0:00:07]} 0-1


[Site "https://www.chess.com"]

[Event "Titled Tuesday Blitz April 4 Late 2023"]
[White "Schuster, Karsten"]
[Black "Fonseca Manrique, Enrique"]
[WhiteFideId "4611071"]
[BlackFideId "5114330"]
[WhiteElo "2294"]
[BlackElo "2520"]
[Result "1/2-1/2"]
[Round "06"]
[TimeControl "180+2"]
[Date "2023.04.04"]
[WhiteClock "0:01:18"]
[BlackClock "0:00:30"]

1. d4 {[%clk 0:02:59]}  Nf6 {[%clk 0:02:45]} 2. c4 {[%clk 0:02:59]}  c5 {[%clk 0:02:45]} 3. d5 {[%clk 0:02:59]}  b5 {[%clk 0:02:45]} 4. Nf3 {[%clk 0:02:59]}  g6 {[%clk 0:02:45]} 5. d6 {[%clk 0:02:58]}  exd6 {[%clk 0:02:38]} 6. Bg5 {[%clk 0:02:53]}  bxc4 {[%clk 0:02:33]} 7. Nc3 {[%clk 0:02:51]}  Bb7 {[%clk 0:02:32]} 8. e4 {[%clk 0:02:50]}  Be7 {[%clk 0:02:26]} 9. Bxc4 {[%clk 0:02:49]}  O-O {[%clk 0:01:58]} 10. Qd3 {[%clk 0:02:46]}  Nc6 {[%clk 0:01:55]} 11. Bxf6 {[%clk 0:02:34]}  Bxf6 {[%clk 0:01:55]} 12. Qxd6 {[%clk 0:02:34]}  Nd4 {[%clk 0:01:49]} 13. O-O {[%clk 0:02:28]}  Nxf3+ {[%clk 0:01:42]} 14. gxf3 {[%clk 0:02:28]}  Bd4 {[%clk 0:01:29]} 15. Nd5 {[%clk 0:02:17]}  Bxd5 {[%clk 0:01:14]} 16. Bxd5 {[%clk 0:02:16]}  Qg5+ {[%clk 0:01:11]} 17. Qg3 {[%clk 0:02:12]}  Qxg3+ {[%clk 0:01:04]} 18. hxg3 {[%clk 0:02:13]}  Rab8 {[%clk 0:01:04]} 19. Rab1 {[%clk 0:02:10]}  Rxb2 {[%clk 0:01:02]} 20. Rxb2 {[%clk 0:02:10]}  Bxb2 {[%clk 0:01:03]} 21. Rb1 {[%clk 0:02:10]}  Rb8 {[%clk 0:01:01]} 22. f4 {[%clk 0:02:08]}  Kf8 {[%clk 0:01:01]} 23. Bb3 {[%clk 0:02:01]}  Bd4 {[%clk 0:00:59]} 24. Rc1 {[%clk 0:01:56]}  Ke7 {[%clk 0:00:58]} 25. Kg2 {[%clk 0:01:56]}  f6 {[%clk 0:00:58]} 26. Kf3 {[%clk 0:01:56]}  h5 {[%clk 0:00:53]} 27. Rc2 {[%clk 0:01:52]}  Rb4 {[%clk 0:00:50]} 28. Bc4 {[%clk 0:01:47]}  a5 {[%clk 0:00:50]} 29. Bd3 {[%clk 0:01:47]}  a4 {[%clk 0:00:48]} 30. e5 {[%clk 0:01:47]}  f5 {[%clk 0:00:44]} 31. Rc4 {[%clk 0:01:39]}  d5 {[%clk 0:00:39]} 32. Rxb4 {[%clk 0:01:38]}  cxb4 {[%clk 0:00:39]} 33. Bc2 {[%clk 0:01:38]}  a3 {[%clk 0:00:38]} 34. Bb3 {[%clk 0:01:37]}  Ke6 {[%clk 0:00:38]} 35. Ke2 {[%clk 0:01:36]}  Bc5 {[%clk 0:00:37]} 36. f3 {[%clk 0:01:35]}  Bd4 {[%clk 0:00:36]} 37. Bc2 {[%clk 0:01:26]}  Bc5 {[%clk 0:00:36]} 38. Bb3 {[%clk 0:01:26]}  Bd4 {[%clk 0:00:36]} 39. Bc2 {[%clk 0:01:26]}  Bg1 {[%clk 0:00:36]} 40. Bb3 {[%clk 0:01:25]}  Bc5 {[%clk 0:00:36]} 41. Bc2 {[%clk 0:01:24]}  Be7 {[%clk 0:00:36]} 42. Bb3 {[%clk 0:01:24]}  h4 {[%clk 0:00:36]} 43. gxh4 {[%clk 0:01:23]}  Bxh4 {[%clk 0:00:36]} 44. Ke3 {[%clk 0:01:22]}  Bg3 {[%clk 0:00:35]} 45. Kd4 {[%clk 0:01:21]}  Bf2+ {[%clk 0:00:35]} 46. Kd3 {[%clk 0:01:21]}  Bg1 {[%clk 0:00:34]} 47. Ke2 {[%clk 0:01:19]}  Bd4 {[%clk 0:00:32]} 48. Kd3 {[%clk 0:01:18]}  Bb2 {[%clk 0:00:32]} 49. Ke3 {[%clk 0:01:18]}  Bc3 {[%clk 0:00:29]} 50. Kd3 {[%clk 0:01:18]}  Bb2 {[%clk 0:00:29]} 51. Ke3 {[%clk 0:01:18]}  Bc3 {[%clk 0:00:30]} 52. Kd3 {[%clk 0:01:18]}  Bb2 {[%clk 0:00:30]} 1/2-1/2


[Site "https://www.chess.com"]

[Event "Titled Tuesday Blitz April 4 Late 2023"]
[White "Ozalp, Burak"]
[Black "Vovk, Orest"]
[WhiteFideId "6314210"]
[BlackFideId "14113490"]
[WhiteElo "2106"]
[BlackElo "2215"]
[Result "0-1"]
[Round "06"]
[TimeControl "180+2"]
[Date "2023.04.04"]
[WhiteClock "0:00:12"]
[BlackClock "0:00:58"]

1. d4 {[%clk 0:03:00]}  e5 {[%clk 0:02:42]} 2. dxe5 {[%clk 0:02:53]}  Nc6 {[%clk 0:02:42]} 3. Nf3 {[%clk 0:02:53]}  Qe7 {[%clk 0:02:41]} 4. g3 {[%clk 0:02:46]}  Nxe5 {[%clk 0:02:41]} 5. Nxe5 {[%clk 0:02:47]}  Qxe5 {[%clk 0:02:42]} 6. Bg2 {[%clk 0:02:47]}  Nf6 {[%clk 0:02:42]} 7. O-O {[%clk 0:02:47]}  Bc5 {[%clk 0:02:42]} 8. Nd2 {[%clk 0:02:34]}  O-O {[%clk 0:02:39]} 9. Nf3 {[%clk 0:02:29]}  Qh5 {[%clk 0:02:38]} 10. a3 {[%clk 0:02:20]}  d5 {[%clk 0:02:35]} 11. b4 {[%clk 0:02:18]}  Bb6 {[%clk 0:02:35]} 12. Bb2 {[%clk 0:02:18]}  Ne4 {[%clk 0:02:34]} 13. c4 {[%clk 0:01:47]}  dxc4 {[%clk 0:02:26]} 14. Qc2 {[%clk 0:01:34]}  Nd6 {[%clk 0:02:06]} 15. Qc3 {[%clk 0:01:29]}  f6 {[%clk 0:02:04]} 16. Rad1 {[%clk 0:01:23]}  Bh3 {[%clk 0:01:55]} 17. Bxh3 {[%clk 0:00:55]}  Qxh3 {[%clk 0:01:54]} 18. Rd5 {[%clk 0:00:55]}  Rae8 {[%clk 0:01:48]} 19. Qd2 {[%clk 0:00:37]}  Ne4 {[%clk 0:01:39]} 20. Qf4 {[%clk 0:00:33]}  c3 {[%clk 0:01:35]} 21. Bc1 {[%clk 0:00:32]}  g5 {[%clk 0:01:23]} 22. Qf5 {[%clk 0:00:18]}  Qxf5 {[%clk 0:01:20]} 23. Rxf5 {[%clk 0:00:19]}  Nxf2 {[%clk 0:01:05]} 24. Rxf2 {[%clk 0:00:17]}  Rxe2 {[%clk 0:01:05]} 25. Nxg5 {[%clk 0:00:17]}  Rxf2 {[%clk 0:00:58]} 26. Rxf2 {[%clk 0:00:12]}  fxg5 {[%clk 0:00:58]} 0-1


[Site "https://www.chess.com"]

[Event "Titled Tuesday Blitz April 4 Late 2023"]
[White "K2JW"]
[Black "Pires, Marcos Vinicius Torsani"]
[BlackFideId "2118939"]
[WhiteElo "2334"]
[BlackElo "2273"]
[Result "1-0"]
[Round "06"]
[TimeControl "180+2"]
[Date "2023.04.04"]
[WhiteClock "0:00:05"]
[BlackClock "0:00:04"]

1. d4 {[%clk 0:03:00]}  Nf6 {[%clk 0:02:59]} 2. c4 {[%clk 0:03:01]}  g6 {[%clk 0:02:59]} 3. Nc3 {[%clk 0:03:00]}  Bg7 {[%clk 0:02:59]} 4. e4 {[%clk 0:03:01]}  d6 {[%clk 0:03:00]} 5. Nf3 {[%clk 0:03:01]}  O-O {[%clk 0:03:00]} 6. Be2 {[%clk 0:03:02]}  e5 {[%clk 0:03:00]} 7. Be3 {[%clk 0:03:03]}  exd4 {[%clk 0:02:51]} 8. Nxd4 {[%clk 0:03:02]}  Re8 {[%clk 0:02:50]} 9. f3 {[%clk 0:03:03]}  c6 {[%clk 0:02:51]} 10. Bf2 {[%clk 0:03:02]}  d5 {[%clk 0:02:49]} 11. exd5 {[%clk 0:03:03]}  cxd5 {[%clk 0:02:49]} 12. O-O {[%clk 0:03:03]}  Nc6 {[%clk 0:02:46]} 13. c5 {[%clk 0:03:04]}  a6 {[%clk 0:02:39]} 14. Qd2 {[%clk 0:02:40]}  Ne5 {[%clk 0:02:21]} 15. b3 {[%clk 0:02:27]}  Qc7 {[%clk 0:02:13]} 16. Na4 {[%clk 0:02:20]}  Bd7 {[%clk 0:02:04]} 17. Nb6 {[%clk 0:02:17]}  Rad8 {[%clk 0:02:04]} 18. Rac1 {[%clk 0:02:09]}  Bc6 {[%clk 0:01:59]} 19. Bg3 {[%clk 0:02:05]}  Qe7 {[%clk 0:01:53]} 20. Bxe5 {[%clk 0:01:48]}  Qxe5 {[%clk 0:01:51]} 21. Nxc6 {[%clk 0:01:48]}  bxc6 {[%clk 0:01:42]} 22. Bxa6 {[%clk 0:01:48]}  Qh5 {[%clk 0:01:33]} 23. Rce1 {[%clk 0:01:29]}  Bh6 {[%clk 0:01:31]} 24. Qd4 {[%clk 0:01:29]}  Bg7 {[%clk 0:01:24]} 25. Qa4 {[%clk 0:01:24]}  Qg5 {[%clk 0:01:02]} 26. Qxc6 {[%clk 0:01:04]}  Qd2 {[%clk 0:01:02]} 27. Rd1 {[%clk 0:00:56]}  Qxa2 {[%clk 0:01:00]} 28. Nc8 {[%clk 0:00:38]}  Qxb3 {[%clk 0:00:52]} 29. Nd6 {[%clk 0:00:38]}  Re7 {[%clk 0:00:39]} 30. Rfe1 {[%clk 0:00:28]}  Nh5 {[%clk 0:00:29]} 31. Kh1 {[%clk 0:00:11]}  Qc2 {[%clk 0:00:20]} 32. Qb5 {[%clk 0:00:06]}  Rxe1+ {[%clk 0:00:12]} 33. Rxe1 {[%clk 0:00:07]}  Nf4 {[%clk 0:00:12]} 34. Re8+ {[%clk 0:00:03]}  Rxe8 {[%clk 0:00:09]} 35. Qxe8+ {[%clk 0:00:04]}  Bf8 {[%clk 0:00:03]} 36. Qxf7+ {[%clk 0:00:04]}  Kh8 {[%clk 0:00:04]} 37. Qxf8# {[%clk 0:00:05]} 1-0


[Site "https://www.chess.com"]

[Event "Titled Tuesday Blitz April 4 Late 2023"]
[White "Papayan, Oleg"]
[Black "Kirillov, Dmitry"]
[WhiteFideId "4193911"]
[BlackFideId "34180572"]
[WhiteElo "2153"]
[BlackElo "2111"]
[Result "1-0"]
[Round "06"]
[TimeControl "180+2"]
[Date "2023.04.04"]
[WhiteClock "0:00:25"]
[BlackClock "0:00:08"]

1. e4 {[%clk 0:03:00]}  c6 {[%clk 0:02:52]} 2. Nc3 {[%clk 0:03:00]}  d5 {[%clk 0:02:53]} 3. Nf3 {[%clk 0:03:00]}  e6 {[%clk 0:02:47]} 4. d4 {[%clk 0:02:59]}  Nf6 {[%clk 0:02:46]} 5. Bd3 {[%clk 0:02:59]}  Be7 {[%clk 0:02:39]} 6. O-O {[%clk 0:02:48]}  O-O {[%clk 0:02:38]} 7. Qe2 {[%clk 0:02:46]}  dxe4 {[%clk 0:02:37]} 8. Nxe4 {[%clk 0:02:46]}  Nbd7 {[%clk 0:02:38]} 9. Ng3 {[%clk 0:02:36]}  c5 {[%clk 0:02:37]} 10. c3 {[%clk 0:02:29]}  b6 {[%clk 0:02:35]} 11. Bf4 {[%clk 0:02:21]}  Bb7 {[%clk 0:02:34]} 12. Rad1 {[%clk 0:02:22]}  Qc8 {[%clk 0:02:34]} 13. Nf5 {[%clk 0:02:11]}  exf5 {[%clk 0:01:50]} 14. Qxe7 {[%clk 0:02:12]}  Ne4 {[%clk 0:01:50]} 15. Ne5 {[%clk 0:01:52]}  Nxe5 {[%clk 0:01:44]} 16. Bxe5 {[%clk 0:01:53]}  cxd4 {[%clk 0:01:38]} 17. Bxd4 {[%clk 0:01:34]}  Re8 {[%clk 0:01:32]} 18. Qh4 {[%clk 0:01:30]}  Qc6 {[%clk 0:01:32]} 19. f3 {[%clk 0:01:28]}  Nd6 {[%clk 0:01:12]} 20. Qg5 {[%clk 0:01:26]}  f6 {[%clk 0:00:57]} 21. Bxf6 {[%clk 0:01:26]}  Qc7 {[%clk 0:00:52]} 22. Rfe1 {[%clk 0:01:03]}  Qf7 {[%clk 0:00:41]} 23. Bd4 {[%clk 0:00:54]}  Qg6 {[%clk 0:00:30]} 24. Qxg6 {[%clk 0:00:44]}  hxg6 {[%clk 0:00:31]} 25. Kf2 {[%clk 0:00:40]}  Kf7 {[%clk 0:00:28]} 26. h4 {[%clk 0:00:38]}  Bd5 {[%clk 0:00:25]} 27. b3 {[%clk 0:00:35]}  Bb7 {[%clk 0:00:21]} 28. Be5 {[%clk 0:00:24]}  Nc8 {[%clk 0:00:08]} 29. Bc4+ {[%clk 0:00:25]}  Kf8 {[%clk 0:00:08]} 30. Bxg7+ {[%clk 0:00:25]} 1-0


[Site "https://www.chess.com"]

[Event "Titled Tuesday Blitz April 4 Late 2023"]
[White "Jovic, Stanoje"]
[Black "Rian, Kapriaga"]
[WhiteFideId "905020"]
[BlackFideId "7103263"]
[WhiteElo "2236"]
[BlackElo "2328"]
[Result "1-0"]
[Round "06"]
[TimeControl "180+2"]
[Date "2023.04.04"]
[WhiteClock "0:00:42"]
[BlackClock "0:00:05"]

1. c4 {[%clk 0:03:00]}  Nf6 {[%clk 0:02:58]} 2. g3 {[%clk 0:03:01]}  e6 {[%clk 0:02:56]} 3. Bg2 {[%clk 0:03:01]}  d5 {[%clk 0:02:55]} 4. Nf3 {[%clk 0:03:01]}  Be7 {[%clk 0:02:51]} 5. O-O {[%clk 0:03:01]}  O-O {[%clk 0:02:50]} 6. d4 {[%clk 0:03:01]}  b6 {[%clk 0:02:41]} 7. Ne5 {[%clk 0:02:59]}  Bb7 {[%clk 0:02:40]} 8. Qa4 {[%clk 0:02:58]}  Nfd7 {[%clk 0:02:32]} 9. f4 {[%clk 0:02:53]}  Nxe5 {[%clk 0:02:25]} 10. fxe5 {[%clk 0:02:51]}  Qd7 {[%clk 0:02:16]} 11. Qxd7 {[%clk 0:02:49]}  Nxd7 {[%clk 0:02:15]} 12. Nc3 {[%clk 0:02:48]}  c6 {[%clk 0:02:10]} 13. cxd5 {[%clk 0:02:34]}  cxd5 {[%clk 0:02:09]} 14. h4 {[%clk 0:02:31]}  f5 {[%clk 0:02:08]} 15. exf6 {[%clk 0:02:27]}  Bxf6 {[%clk 0:02:06]} 16. e3 {[%clk 0:02:19]}  Ba6 {[%clk 0:01:57]} 17. Rf2 {[%clk 0:02:17]}  Be7 {[%clk 0:01:48]} 18. Nxd5 {[%clk 0:02:07]}  Bd6 {[%clk 0:01:34]} 19. Nf4 {[%clk 0:02:02]}  Rac8 {[%clk 0:01:28]} 20. Bh3 {[%clk 0:01:56]}  Bc4 {[%clk 0:01:00]} 21. b3 {[%clk 0:01:53]}  Bd5 {[%clk 0:00:59]} 22. Nxd5 {[%clk 0:01:47]}  Bxg3 {[%clk 0:00:43]} 23. Bxe6+ {[%clk 0:01:43]}  Kh8 {[%clk 0:00:42]} 24. Rxf8+ {[%clk 0:01:40]}  Rxf8 {[%clk 0:00:40]} 25. Bxd7 {[%clk 0:01:39]}  Bf2+ {[%clk 0:00:38]} 26. Kg2 {[%clk 0:01:36]}  Bxh4 {[%clk 0:00:38]} 27. Ba3 {[%clk 0:01:34]}  Rf2+ {[%clk 0:00:36]} 28. Kh3 {[%clk 0:01:34]}  Bg5 {[%clk 0:00:33]} 29. Rc1 {[%clk 0:01:33]}  h5 {[%clk 0:00:31]} 30. Rc8+ {[%clk 0:01:26]}  Kh7 {[%clk 0:00:30]} 31. e4 {[%clk 0:01:20]}  Bd2 {[%clk 0:00:18]} 32. Bf5+ {[%clk 0:01:17]}  g6 {[%clk 0:00:17]} 33. Rc7+ {[%clk 0:01:14]}  Kh6 {[%clk 0:00:16]} 34. Bf8+ {[%clk 0:00:54]}  Kg5 {[%clk 0:00:15]} 35. Be7+ {[%clk 0:00:49]}  Kh6 {[%clk 0:00:15]} 36. Rc6 {[%clk 0:00:47]}  Bf4 {[%clk 0:00:05]} 37. Rxg6+ {[%clk 0:00:45]}  Kh7 {[%clk 0:00:05]} 38. Nf6+ {[%clk 0:00:43]}  Kh8 {[%clk 0:00:05]} 39. Rg8# {[%clk 0:00:42]} 1-0


[Site "https://www.chess.com"]

[Event "Titled Tuesday Blitz April 4 Late 2023"]
[White "lluiss"]
[Black "Rizzo, Tobias"]
[BlackFideId "30942691"]
[WhiteElo "2269"]
[BlackElo "2454"]
[Result "0-1"]
[Round "06"]
[TimeControl "180+2"]
[Date "2023.04.04"]
[WhiteClock "0:00:03"]
[BlackClock "0:00:07"]

1. c4 {[%clk 0:02:55]}  Nf6 {[%clk 0:02:59]} 2. Nc3 {[%clk 0:02:52]}  d5 {[%clk 0:02:57]} 3. cxd5 {[%clk 0:02:51]}  Nxd5 {[%clk 0:02:58]} 4. g3 {[%clk 0:02:47]}  e5 {[%clk 0:02:57]} 5. Bg2 {[%clk 0:02:47]}  Be6 {[%clk 0:02:57]} 6. Nf3 {[%clk 0:02:44]}  Nc6 {[%clk 0:02:57]} 7. O-O {[%clk 0:02:43]}  Be7 {[%clk 0:02:56]} 8. d4 {[%clk 0:02:30]}  exd4 {[%clk 0:02:12]} 9. Nxd4 {[%clk 0:02:29]}  Nxd4 {[%clk 0:02:10]} 10. Qxd4 {[%clk 0:02:28]}  Bf6 {[%clk 0:02:10]} 11. Qa4+ {[%clk 0:02:24]}  c6 {[%clk 0:02:09]} 12. Rd1 {[%clk 0:02:15]}  Bxc3 {[%clk 0:02:04]} 13. bxc3 {[%clk 0:02:14]}  O-O {[%clk 0:01:55]} 14. c4 {[%clk 0:01:17]}  Nc3 {[%clk 0:01:49]} 15. Rxd8 {[%clk 0:01:15]}  Nxa4 {[%clk 0:01:33]} 16. Rxf8+ {[%clk 0:01:10]}  Rxf8 {[%clk 0:01:31]} 17. Be3 {[%clk 0:01:02]}  Rd8 {[%clk 0:01:20]} 18. Rb1 {[%clk 0:00:36]}  b6 {[%clk 0:00:54]} 19. Bxc6 {[%clk 0:00:34]}  Nc3 {[%clk 0:00:54]} 20. Re1 {[%clk 0:00:29]}  Bxc4 {[%clk 0:00:44]} 21. a4 {[%clk 0:00:14]}  f6 {[%clk 0:00:40]} 22. a5 {[%clk 0:00:13]}  bxa5 {[%clk 0:00:39]} 23. Bxa7 {[%clk 0:00:13]}  Nxe2+ {[%clk 0:00:36]} 24. Kg2 {[%clk 0:00:12]}  Rd2 {[%clk 0:00:30]} 25. Bb6 {[%clk 0:00:08]}  Ra2 {[%clk 0:00:19]} 26. Bf3 {[%clk 0:00:06]}  Nc3 {[%clk 0:00:14]} 27. Rc1 {[%clk 0:00:06]}  Nd5 {[%clk 0:00:05]} 28. Rxc4 {[%clk 0:00:04]}  Nxb6 {[%clk 0:00:05]} 29. Rc6 {[%clk 0:00:04]}  Rb2 {[%clk 0:00:05]} 30. Rc5 {[%clk 0:00:03]}  a4 {[%clk 0:00:04]} 31. Ra5 {[%clk 0:00:03]}  Rb3 {[%clk 0:00:04]} 32. Be2 {[%clk 0:00:03]}  Rb2 {[%clk 0:00:03]} 33. Bd3 {[%clk 0:00:02]}  Kf7 {[%clk 0:00:03]} 34. Bf1 {[%clk 0:00:02]}  Ke6 {[%clk 0:00:03]} 35. Ra7 {[%clk 0:00:03]}  g5 {[%clk 0:00:01]} 36. Ra5 {[%clk 0:00:03]}  Kd6 {[%clk 0:00:01]} 37. Ra6 {[%clk 0:00:04]}  Kc6 {[%clk 0:00:01]} 38. Ra7 {[%clk 0:00:04]}  Kc5 {[%clk 0:00:02]} 39. Rxh7 {[%clk 0:00:04]}  a3 {[%clk 0:00:02]} 40. Rc7+ {[%clk 0:00:05]}  Kb4 {[%clk 0:00:02]} 41. Ra7 {[%clk 0:00:05]}  a2 {[%clk 0:00:02]} 42. h4 {[%clk 0:00:05]}  Na4 {[%clk 0:00:02]} 43. Rb7+ {[%clk 0:00:01]}  Ka3 {[%clk 0:00:02]} 44. Rxb2 {[%clk 0:00:01]}  Nxb2 {[%clk 0:00:03]} 45. hxg5 {[%clk 0:00:01]}  fxg5 {[%clk 0:00:04]} 46. g4 {[%clk 0:00:01]}  a1=Q {[%clk 0:00:04]} 47. f3 {[%clk 0:00:01]}  Qd1 {[%clk 0:00:05]} 48. Kg3 {[%clk 0:00:01]}  Qxf1 {[%clk 0:00:05]} 49. f4 {[%clk 0:00:01]}  Qxf4+ {[%clk 0:00:05]} 50. Kh3 {[%clk 0:00:02]}  Qf3+ {[%clk 0:00:06]} 51. Kh2 {[%clk 0:00:02]}  Qxg4 {[%clk 0:00:07]} 52. Kh1 {[%clk 0:00:03]}  Nd3 {[%clk 0:00:07]} 0-1


[Site "https://www.chess.com"]

[Event "Titled Tuesday Blitz April 4 Late 2023"]
[White "Martin Barcelo, Carles"]
[Black "Svicevic, Rastko"]
[WhiteFideId "24561444"]
[BlackFideId "916315"]
[WhiteElo "2089"]
[BlackElo "2071"]
[Result "1-0"]
[Round "06"]
[TimeControl "180+2"]
[Date "2023.04.04"]
[WhiteClock "0:00:05"]
[BlackClock "0:00:07"]

1. d4 {[%clk 0:02:55]}  c6 {[%clk 0:03:00]} 2. Nf3 {[%clk 0:02:52]}  d5 {[%clk 0:03:01]} 3. e3 {[%clk 0:02:52]}  e6 {[%clk 0:03:00]} 4. Bd3 {[%clk 0:02:51]}  f5 {[%clk 0:03:00]} 5. b3 {[%clk 0:02:50]}  Bd6 {[%clk 0:02:53]} 6. O-O {[%clk 0:02:50]}  Qe7 {[%clk 0:02:52]} 7. a4 {[%clk 0:02:48]}  a5 {[%clk 0:02:48]} 8. Ba3 {[%clk 0:02:48]}  Bxa3 {[%clk 0:02:45]} 9. Nxa3 {[%clk 0:02:49]}  Nf6 {[%clk 0:02:45]} 10. Ne5 {[%clk 0:02:49]}  Nbd7 {[%clk 0:02:44]} 11. f4 {[%clk 0:02:49]}  O-O {[%clk 0:02:38]} 12. c4 {[%clk 0:02:47]}  Ne4 {[%clk 0:02:37]} 13. Nb1 {[%clk 0:02:38]}  g5 {[%clk 0:02:29]} 14. Nd2 {[%clk 0:02:31]}  Nxe5 {[%clk 0:02:29]} 15. fxe5 {[%clk 0:02:29]}  Nxd2 {[%clk 0:02:16]} 16. Qxd2 {[%clk 0:02:30]}  Bd7 {[%clk 0:02:16]} 17. Rf3 {[%clk 0:02:25]}  Be8 {[%clk 0:02:15]} 18. Raf1 {[%clk 0:02:22]}  Bg6 {[%clk 0:02:05]} 19. R3f2 {[%clk 0:02:04]}  Qb4 {[%clk 0:02:04]} 20. Qxb4 {[%clk 0:02:02]}  axb4 {[%clk 0:02:04]} 21. cxd5 {[%clk 0:01:55]}  cxd5 {[%clk 0:02:05]} 22. Rc1 {[%clk 0:01:55]}  f4 {[%clk 0:02:04]} 23. Bxg6 {[%clk 0:01:50]}  hxg6 {[%clk 0:02:02]} 24. exf4 {[%clk 0:01:49]}  gxf4 {[%clk 0:02:02]} 25. Rc7 {[%clk 0:01:46]}  b5 {[%clk 0:01:50]} 26. axb5 {[%clk 0:01:45]}  Rab8 {[%clk 0:01:49]} 27. Rc6 {[%clk 0:01:33]}  Rxb5 {[%clk 0:01:43]} 28. Rxe6 {[%clk 0:01:32]}  Kg7 {[%clk 0:01:44]} 29. Re7+ {[%clk 0:01:16]}  Kh6 {[%clk 0:01:43]} 30. h4 {[%clk 0:01:15]}  Kh5 {[%clk 0:01:25]} 31. g3 {[%clk 0:01:02]}  Kg4 {[%clk 0:00:57]} 32. Kg2 {[%clk 0:00:50]}  Rbb8 {[%clk 0:00:37]} 33. Rg7 {[%clk 0:00:43]}  fxg3 {[%clk 0:00:17]} 34. Rxg6+ {[%clk 0:00:38]}  Kxh4 {[%clk 0:00:17]} 35. Rxg3 {[%clk 0:00:21]}  Rxf2+ {[%clk 0:00:13]} 36. Kxf2 {[%clk 0:00:22]}  Rf8+ {[%clk 0:00:12]} 37. Rf3 {[%clk 0:00:21]}  Rc8 {[%clk 0:00:08]} 38. e6 {[%clk 0:00:12]}  Kg5 {[%clk 0:00:07]} 39. Kg3 {[%clk 0:00:07]}  Kg6 {[%clk 0:00:06]} 40. Kf4 {[%clk 0:00:05]}  Rc3 {[%clk 0:00:05]} 41. Rxc3 {[%clk 0:00:03]}  bxc3 {[%clk 0:00:06]} 42. Ke3 {[%clk 0:00:04]}  Kf6 {[%clk 0:00:06]} 43. Kd3 {[%clk 0:00:05]}  Kxe6 {[%clk 0:00:07]} 44. Kxc3 {[%clk 0:00:05]} 1-0


[Site "https://www.chess.com"]

[Event "Titled Tuesday Blitz April 4 Late 2023"]
[White "reevecanada"]
[Black "Baruch, Liam"]
[BlackFideId "14322064"]
[WhiteElo "2439"]
[BlackElo "2171"]
[Result "1-0"]
[Round "06"]
[TimeControl "180+2"]
[Date "2023.04.04"]
[WhiteClock "0:02:13"]
[BlackClock "0:00:09"]

1. e4 {[%clk 0:02:57]}  e5 {[%clk 0:02:59]} 2. Nf3 {[%clk 0:02:56]}  Nf6 {[%clk 0:02:59]} 3. d4 {[%clk 0:02:54]}  Nxe4 {[%clk 0:02:59]} 4. dxe5 {[%clk 0:02:54]}  Bc5 {[%clk 0:02:55]} 5. Qd5 {[%clk 0:02:54]}  Nxf2 {[%clk 0:02:27]} 6. Bg5 {[%clk 0:02:46]}  f6 {[%clk 0:01:52]} 7. exf6 {[%clk 0:02:43]}  gxf6 {[%clk 0:01:44]} 8. Qxc5 {[%clk 0:02:42]}  Nxh1 {[%clk 0:01:36]} 9. Be3 {[%clk 0:02:35]}  Qe7 {[%clk 0:01:28]} 10. Qh5+ {[%clk 0:02:32]}  Qf7 {[%clk 0:01:25]} 11. Qh4 {[%clk 0:02:28]}  Qe6 {[%clk 0:01:17]} 12. Kd2 {[%clk 0:02:26]}  Nc6 {[%clk 0:01:12]} 13. Nc3 {[%clk 0:02:24]}  Qd6+ {[%clk 0:00:47]} 14. Bd3 {[%clk 0:02:22]}  Ne5 {[%clk 0:00:43]} 15. Nxe5 {[%clk 0:02:22]}  Qxe5 {[%clk 0:00:41]} 16. Rxh1 {[%clk 0:02:21]}  d5 {[%clk 0:00:39]} 17. Re1 {[%clk 0:02:17]}  Be6 {[%clk 0:00:14]} 18. Bd4 {[%clk 0:02:16]}  Qd6 {[%clk 0:00:13]} 19. Qxf6 {[%clk 0:02:14]}  Kd7 {[%clk 0:00:10]} 20. Rxe6 {[%clk 0:02:14]}  Qxe6 {[%clk 0:00:09]} 21. Bf5 {[%clk 0:02:13]} 1-0


[Site "https://www.chess.com"]